bitfinex-derivatives/quotes_BTCF0:USTF0_20250720
["timestamp","ask_amount","ask_price","bid_price","bid_amount"]
[1753017013966,0.7563777,118230.0,118220.0,0.19447168]
[1753017014164,1.3473377,118230.0,118220.0,0.19447168]
[1753017014468,1.3473377,118230.0,118220.0,0.20104168]
[1753017014762,1.3473377,118230.0,118220.0,0.15544]
[1753017015670,0.7563777,118230.0,118220.0,0.15544]
[1753017015859,1.3472177,118230.0,118220.0,0.15544]
[1753017016255,0.9864177,118230.0,118220.0,0.20104168]
[1753017017074,0.3955777,118230.0,118220.0,0.20104168]
[1753017017264,1.36386143,118230.0,118220.0,0.15544]
[1753017018454,1.00306143,118230.0,118220.0,0.20104168]
[1753017018767,1.36386143,118230.0,118220.0,0.20104168]
[1753017019169,1.36386143,118230.0,118220.0,0.15544]
[1753017019565,0.77350143,118230.0,118220.0,0.15544]
[1753017019770,1.36370143,118230.0,118220.0,0.15544]
[1753017020471,1.36370143,118230.0,118220.0,0.20104168]
[1753017021668,1.00290143,118230.0,118220.0,0.20104168]
[1753017022074,0.41270143,118230.0,118220.0,0.20104168]
[1753017022275,1.00246143,118230.0,118220.0,0.20104168]
[1753017022570,1.36326143,118230.0,118220.0,0.20104168]
[1753017024472,1.3461377,118230.0,118220.0,0.20104168]
[1753017024676,0.9853377,118230.0,118220.0,0.20104168]
[1753017024977,1.3461377,118230.0,118220.0,0.20104168]
[1753017026374,0.9853377,118230.0,118220.0,0.20104168]
[1753017026576,0.9848977,118230.0,118220.0,0.37014368]
[1753017026774,1.3456977,118230.0,118220.0,0.20104168]
[1753017027069,1.3456577,118230.0,118220.0,0.37014368]
[1753017027276,0.9848577,118230.0,118220.0,0.37014368]
[1753017027475,1.3456577,118230.0,118220.0,0.37014368]
[1753017027872,0.9848577,118230.0,118220.0,0.37014368]
[1753017028072,0.3955777,118230.0,118220.0,0.37014368]
[1753017028273,0.9847777,118230.0,118220.0,0.37014368]
[1753017029585,1.3455777,118230.0,118220.0,0.20104168]
[1753017030381,1.36271922,118230.0,118220.0,0.20104168]
[1753017031489,1.00199922,118230.0,118220.0,0.37014368]
[1753017033388,0.9848577,118230.0,118220.0,0.37014368]
[1753017034683,0.3406277,118230.0,118220.0,0.37014368]
[1753017034884,0.3099177,118230.0,118220.0,0.73094368]
[1753017035188,0.3099177,118230.0,118220.0,0.37014368]
[1753017035684,0.3099177,118230.0,118220.0,0.73094368]
[1753017035685,0.3401377,118230.0,118220.0,0.73094368]
[1753017035887,0.3401377,118230.0,118220.0,0.324542]
[1753017036088,0.3401377,118230.0,118220.0,0.3701114]
[1753017036290,0.3401377,118230.0,118220.0,0.685342]
[1753017036480,0.3401377,118230.0,118220.0,0.324542]
[1753017037891,0.3401377,118230.0,118220.0,0.38532742]
[1753017039589,0.3401377,118230.0,118220.0,0.74612742]
[1753017039782,0.3401377,118230.0,118220.0,0.38532742]
[1753017041192,0.3401377,118230.0,118220.0,0.74612742]
[1753017041384,0.3401377,118230.0,118220.0,0.38532742]
[1753017041586,0.3401377,118230.0,118220.0,0.74612742]
[1753017041791,0.3401377,118230.0,118220.0,0.38532742]
[1753017044095,0.3603677,118230.0,118220.0,0.324542]
[1753017044400,0.3603677,118230.0,118220.0,0.685342]
[1753017044590,0.3401377,118230.0,118220.0,0.685342]
[1753017044893,0.3401377,118230.0,118220.0,0.324542]
[1753017045093,0.3401377,118230.0,118220.0,0.685342]
[1753017045394,0.3401377,118230.0,118220.0,0.324542]
[1753017046086,0.3401377,118230.0,118220.0,0.685342]
[1753017048093,0.3401377,118230.0,118220.0,0.324542]
[1753017054098,0.7525077,118230.0,118220.0,0.11742]
[1753017056300,0.7525077,118230.0,118220.0,0.286522]
[1753017056499,0.7525077,118230.0,118220.0,0.315862]
[1753017056901,0.7525077,118230.0,118220.0,0.14676]
[1753017057101,0.76968815,118230.0,118220.0,0.14676]
[1753017057495,1.35952815,118230.0,118220.0,0.19236409]
[1753017060100,0.76968815,118230.0,118220.0,0.36146619]
[1753017060405,1.35924815,118230.0,118220.0,0.36146619]
[1753017060606,1.35924815,118230.0,118220.0,0.36792619]
[1753017060795,1.35924815,118230.0,118220.0,0.19882409]
[1753017065111,1.35924815,118230.0,118220.0,0.16948409]
[1753017065407,1.35924815,118230.0,118220.0,0.13940409]
[1753017066514,1.35924815,118230.0,118220.0,0.12580409]
[1753017066915,1.35924815,118230.0,118220.0,0.13881409]
[1753017067403,1.3420677,118230.0,118220.0,0.2623121]
[1753017068817,1.3420677,118230.0,118220.0,0.09321]
[1753017070310,1.3420677,118230.0,118220.0,0.2623121]
[1753017070512,1.3420677,118230.0,118220.0,0.0802]
[1753017070713,1.35926383,118230.0,118220.0,0.1258032]
[1753017071811,1.35926383,118230.0,118220.0,0.1388132]
[1753017072516,1.35926383,118230.0,118220.0,0.1258032]
[1753017072907,1.35926383,118230.0,118220.0,0.0456032]
[1753017076009,0.1759321,118220.0,118210.0,0.008462]
[1753017076205,0.1759464,118210.0,118200.0,0.73703512]
[1753017076409,0.90740673,118210.0,118200.0,0.56790542]
[1753017077014,0.90740673,118210.0,118200.0,0.57622987]
[1753017077209,0.90740673,118210.0,118200.0,0.21542987]
[1753017077610,0.90740673,118210.0,118200.0,0.20710542]
[1753017078010,0.90740673,118210.0,118200.0,0.20910542]
[1753017078411,0.90740673,118210.0,118200.0,0.15032]
[1753017078609,0.90740673,118210.0,118200.0,0.15388542]
[1753017079115,0.90740673,118210.0,118200.0,0.0931]
[1753017079309,0.90740673,118210.0,118200.0,0.10169333]
[1753017079807,0.90740673,118210.0,118200.0,0.1154]
[1753017080007,1.26820673,118210.0,118200.0,0.0931]
[1753017080917,1.26820673,118210.0,118200.0,0.0911]
[1753017081108,1.26920673,118210.0,118200.0,0.04434]
[1753017081314,1.26920673,118210.0,118200.0,0.0891]
[1753017083716,1.28658041,118210.0,118200.0,0.0891]
[1753017083914,1.28658041,118210.0,118200.0,0.14632]
[1753017084107,1.28395041,118210.0,118200.0,0.14632]
[1753017084311,1.28625041,118210.0,118200.0,0.31545]
[1753017084823,0.92545041,118210.0,118200.0,0.31545]
[1753017085114,0.90807673,118210.0,118200.0,0.31545]
[1753017085320,0.90807673,118210.0,118200.0,0.32389135]
[1753017086321,0.90807673,118210.0,118200.0,0.15476135]
[1753017087223,0.90807673,118210.0,118200.0,0.32389125]
[1753017088017,0.90807673,118210.0,118200.0,0.3154499]
[1753017088222,0.90807673,118210.0,118200.0,0.0891]
[1753017089519,0.90807673,118210.0,118200.0,0.09770438]
[1753017090627,0.90807673,118210.0,118200.0,0.26683438]
[1753017090822,0.90807673,118210.0,118200.0,0.32278438]
[1753017092025,0.90807673,118210.0,118200.0,0.26683438]
[1753017092213,0.90807673,118210.0,118200.0,0.0891]
[1753017092418,0.90807673,118210.0,118200.0,0.09774623]
[1753017092618,0.90807673,118210.0,118200.0,0.0891]
[1753017094423,1.26887673,118210.0,118200.0,0.07609]
[1753017095125,0.1743799,118200.0,118190.0,0.07545]
[1753017095325,0.6451799,118200.0,118190.0,0.07545]
[1753017095722,0.6451799,118200.0,118190.0,0.08846]
[1753017096420,0.6451799,118200.0,118190.0,0.2586043]
[1753017096821,0.2843799,118200.0,118190.0,0.2586043]
[1753017097027,0.2843799,118200.0,118190.0,0.09046]
[1753017098029,0.2843799,118200.0,118190.0,0.14641]
[1753017098223,0.8776199,118200.0,118190.0,0.14641]
[1753017099227,1.2384199,118200.0,118190.0,0.14641]
[1753017099824,1.2384199,118200.0,118190.0,0.09046]
[1753017103630,1.2384199,118200.0,118190.0,0.07745]
[1753017109228,1.2384199,118200.0,118190.0,0.09046]
[1753017109531,1.2384199,118200.0,118190.0,0.07745]
[1753017110031,1.2384199,118200.0,118190.0,0.09046]
[1753017110920,1.2384199,118200.0,118190.0,0.07745]
[1753017111629,1.2384199,118200.0,118190.0,0.12300387]
[1753017111924,1.2384199,118200.0,118190.0,0.13601387]
[1753017112634,0.6451799,118200.0,118190.0,0.13601387]
[1753017112931,1.2371799,118200.0,118190.0,0.13601387]
[1753017113122,1.2371799,118200.0,118190.0,0.12300387]
[1753017113832,1.2371799,118200.0,118190.0,0.13601387]
[1753017114525,1.2371799,118200.0,118190.0,0.09046]
[1753017114922,1.2371799,118200.0,118190.0,0.07745]
[1753017115426,1.2371799,118200.0,118190.0,0.08995]
[1753017116431,0.6431599,118200.0,118190.0,0.3157143]
[1753017116632,1.2350799,118200.0,118190.0,0.3157143]
[1753017117237,1.2359099,118200.0,118190.0,0.20735542]
[1753017117836,1.2359099,118200.0,118190.0,0.14657]
[1753017119536,1.2359099,118200.0,118190.0,0.08995]
[1753017121232,1.2359099,118200.0,118190.0,0.07745]
[1753017123434,0.6439899,118200.0,118190.0,0.07745]
[1753017123735,1.2351499,118200.0,118190.0,0.08995]
[1753017124540,1.2351499,118200.0,118190.0,0.19476306]
[1753017124935,0.6439899,118200.0,118190.0,0.25146306]
[1753017125136,0.8734799,118200.0,118190.0,0.72062194]
[1753017125336,0.8734799,118200.0,118190.0,0.42060736]
[1753017126545,0.2823599,118200.0,118190.0,0.42060736]
[1753017126840,0.8730799,118200.0,118190.0,0.42060736]
[1753017127137,0.11,118200.0,118190.0,0.72062194]
[1753017128134,0.06429388,118200.0,118190.0,0.72062194]
[1753017128636,0.23342388,118200.0,118190.0,0.72062194]
[1753017131245,0.06429388,118200.0,118190.0,0.72062194]
[1753017131445,0.23342388,118200.0,118190.0,0.72062194]
[1753017131640,0.06429388,118200.0,118190.0,0.72062194]
[1753017131944,0.23342378,118200.0,118190.0,0.79660337]
[1753017132948,0.16486879,118200.0,118190.0,0.79660337]
[1753017133147,0.25486879,118200.0,118190.0,0.79660337]
[1753017134146,0.2114059,118210.0,118200.0,0.3140699]
[1753017134338,0.2291263,118210.0,118200.0,1.29342616]
[1753017134544,0.2291156,118210.0,118200.0,1.29342616]
[1753017134746,0.2291156,118210.0,118200.0,1.36940759]
[1753017135249,0.2291156,118210.0,118200.0,1.29342616]
[1753017135548,0.2301156,118210.0,118200.0,1.29342616]
[1753017137243,0.2301156,118210.0,118200.0,1.36940759]
[1753017137450,0.2301156,118210.0,118200.0,0.70194616]
[1753017137748,0.2314556,118210.0,118200.0,0.41712769]
[1753017138049,0.2314556,118210.0,118200.0,0.9438245]
[1753017138951,0.2314556,118210.0,118200.0,0.77248091]
[1753017139148,0.2314556,118210.0,118200.0,1.36528091]
[1753017140849,0.2314556,118210.0,118200.0,1.3046645]
[1753017141249,0.2314556,118210.0,118200.0,1.1355345]
[1753017141750,0.2314556,118210.0,118200.0,1.3046644]
[1753017142449,0.2314556,118210.0,118200.0,0.9438644]
[1753017142650,0.2314556,118210.0,118200.0,0.7744145]
[1753017142950,0.2314556,118210.0,118200.0,0.83501103]
[1753017143343,0.2314556,118210.0,118200.0,0.24253103]
[1753017144649,0.2314556,118210.0,118200.0,0.24253061]
[1753017144844,0.2314556,118210.0,118200.0,0.41166051]
[1753017145447,0.2314556,118210.0,118200.0,0.77246051]
[1753017145644,0.2301156,118210.0,118200.0,0.77246051]
[1753017146955,0.2301156,118210.0,118200.0,0.7118644]
[1753017147455,0.2301156,118210.0,118200.0,0.5427345]
[1753017147754,0.2301156,118210.0,118200.0,0.7118645]
[1753017149854,0.2301156,118210.0,118200.0,0.5427345]
[1753017150055,0.2301156,118210.0,118200.0,0.7118645]
[1753017150454,0.2301156,118210.0,118200.0,0.5427345]
[1753017151452,0.2301156,118210.0,118200.0,0.54004487]
[1753017151850,0.2301156,118210.0,118200.0,0.17924487]
[1753017152657,0.2338056,118210.0,118200.0,0.17924487]
[1753017153056,0.2338056,118210.0,118200.0,0.23985627]
[1753017153962,0.2301156,118210.0,118200.0,0.40898627]
[1753017154258,0.2301157,118210.0,118200.0,0.76978627]
[1753017154453,0.2301157,118210.0,118200.0,0.68478824]
[1753017155054,0.2301157,118210.0,118200.0,0.67487]
[1753017157159,0.2301157,118210.0,118200.0,0.7354814]
[1753017161964,0.2301157,118210.0,118200.0,0.67487]
[1753017163065,0.2301157,118210.0,118200.0,0.73555099]
[1753017165969,0.061,118210.0,118200.0,0.73555099]
[1753017166169,0.2301157,118210.0,118200.0,0.73555099]
[1753017166575,0.2301157,118210.0,118200.0,0.67487]
[1753017168270,0.2301157,118210.0,118200.0,0.73551778]
[1753017169575,0.2301157,118210.0,118200.0,1.32471778]
[1753017170572,0.2301157,118210.0,118200.0,0.67487]
[1753017170779,0.2301157,118210.0,118200.0,1.32470603]
[1753017175679,0.2301157,118210.0,118200.0,1.26407]
[1753017177477,0.001,118210.0,118200.0,1.87387062]
[1753017177676,0.2536613,118220.0,118210.0,0.312176]
[1753017177870,0.3736613,118220.0,118210.0,1.3227324]
[1753017178570,0.2891083,118220.0,118210.0,1.3227324]
[1753017179379,0.2891083,118220.0,118210.0,1.3237324]
[1753017180978,0.2891083,118220.0,118210.0,0.902336]
[1753017181173,0.2956083,118220.0,118210.0,0.14406]
[1753017181372,0.3104083,118220.0,118210.0,0.14406]
[1753017181577,0.6723183,118220.0,118210.0,0.07473]
[1753017181778,0.6723183,118220.0,118210.0,0.1353264]
[1753017182385,0.6723183,118220.0,118210.0,0.07473]
[1753017182587,0.6723183,118220.0,118210.0,0.12019606]
[1753017182787,0.6743183,118220.0,118210.0,0.12019606]
[1753017183581,1.4326223,118220.0,118210.0,0.04646606]
[1753017183785,1.6836223,118220.0,118210.0,0.03244606]
[1753017184189,1.6836223,118220.0,118210.0,0.0627562]
[1753017184390,1.6836223,118220.0,118210.0,0.03031014]
[1753017186081,0.1691322,118210.0,118200.0,0.11728014]
[1753017186389,0.6628222,118210.0,118200.0,0.11728014]
[1753017187090,0.13,118210.0,118200.0,0.70331664]
[1753017187286,0.2991322,118210.0,118200.0,1.2621265]
[1753017187590,0.13,118210.0,118200.0,0.6730065]
[1753017187889,0.3009122,118210.0,118200.0,1.2621665]
[1753017188488,0.3019122,118210.0,118200.0,1.2621665]
[1753017188688,0.3019122,118210.0,118200.0,0.9013665]
[1753017188893,0.3019122,118210.0,118200.0,0.3122065]
[1753017189084,0.3019122,118210.0,118200.0,0.9014065]
[1753017189384,0.3019122,118210.0,118200.0,0.3122065]
[1753017189589,0.3019122,118210.0,118200.0,0.9013665]
[1753017190992,0.3019122,118210.0,118200.0,1.2621665]
[1753017191593,0.3019122,118210.0,118200.0,0.9013665]
[1753017195694,0.6627122,118210.0,118200.0,0.9013665]
[1753017198896,0.3019122,118210.0,118200.0,0.9013665]
[1753017199092,0.6627122,118210.0,118200.0,0.9013665]
[1753017199296,0.6627122,118210.0,118200.0,0.3122065]
[1753017199493,0.6609322,118210.0,118200.0,0.9013665]
[1753017200091,0.6627122,118210.0,118200.0,0.9013665]
[1753017200497,0.3019122,118210.0,118200.0,0.9013665]
[1753017203194,0.131,118210.0,118200.0,0.9013665]
[1753017203394,0.131,118210.0,118200.0,1.2621665]
[1753017203796,0.131,118210.0,118200.0,1.3227629]
[1753017205701,0.131,118210.0,118200.0,1.2621665]
[1753017206296,0.131,118210.0,118200.0,1.3227206]
[1753017210105,0.131,118210.0,118200.0,1.2621665]
[1753017210499,0.3001324,118210.0,118200.0,1.2621665]
[1753017210694,0.3001324,118210.0,118200.0,1.32271414]
[1753017211105,0.131,118210.0,118200.0,1.32271414]
[1753017212106,0.131,118210.0,118200.0,1.2621665]
[1753017212903,0.3001324,118210.0,118200.0,1.2621665]
[1753017213409,0.131,118210.0,118200.0,1.2621665]
[1753017215702,0.03859,118210.0,118200.0,1.2621665]
[1753017215903,0.44255778,118230.0,118220.0,0.2582781]
[1753017216104,0.34255778,118230.0,118220.0,0.9033381]
[1753017216509,0.36398778,118230.0,118220.0,0.9033381]
[1753017217213,0.36698778,118230.0,118220.0,0.9033381]
[1753017217508,0.11331588,118230.0,118220.0,0.9033381]
[1753017217710,0.11331588,118230.0,118220.0,0.96387351]
[1753017217711,0.073,118230.0,118220.0,0.96387351]
[1753017218011,0.073,118230.0,118220.0,0.9033381]
[1753017218709,0.073,118230.0,118220.0,0.96387351]
[1753017219704,0.073,118230.0,118220.0,1.2641381]
[1753017219909,0.075,118230.0,118220.0,1.2641381]
[1753017220714,0.07,118230.0,118220.0,1.2641381]
[1753017222916,0.07,118230.0,118220.0,1.32467351]
[1753017227417,0.2391038,118230.0,118220.0,1.32467351]
[1753017230626,0.2669638,118230.0,118220.0,0.37487351]
[1753017230820,0.3830138,118230.0,118220.0,0.96995351]
[1753017231020,0.7438138,118230.0,118220.0,0.37487351]
[1753017231226,0.7438138,118230.0,118220.0,0.96995351]
[1753017231425,0.07,118230.0,118220.0,1.33075351]
[1753017234528,0.07,118230.0,118220.0,1.2702181]
[1753017247043,0.07,118230.0,118220.0,1.33076877]
[1753017248949,0.07,118230.0,118220.0,1.2702181]
[1753017252449,0.07,118230.0,118220.0,1.34619953]
[1753017257951,0.07,118230.0,118220.0,1.2702181]
[1753017258551,0.07,118230.0,118220.0,1.34619953]
[1753017260154,0.07,118230.0,118220.0,0.75111953]
[1753017260342,0.07,118230.0,118220.0,1.32999712]
[1753017266053,0.07,118230.0,118220.0,1.2694181]
[1753017266253,0.07,118230.0,118220.0,1.34539953]
[1753017269650,0.76424617,118230.0,118220.0,0.98440173]
[1753017269955,0.76424617,118230.0,118220.0,0.96904247]
[1753017272758,0.745046,118230.0,118220.0,0.96904247]
[1753017273654,0.745046,118230.0,118220.0,0.9087003]
[1753017275160,0.745046,118230.0,118220.0,0.9084203]
[1753017276457,0.745046,118230.0,118220.0,0.9088203]
[1753017280460,0.745046,118230.0,118220.0,0.9096603]
[1753017283265,0.745046,118230.0,118220.0,0.3143403]
[1753017283466,0.745046,118230.0,118220.0,0.9097803]
[1753017285169,0.384246,118230.0,118220.0,0.97040247]
[1753017285468,0.745046,118230.0,118220.0,0.97040247]
[1753017286265,0.76387512,118230.0,118220.0,0.37496247]
[1753017286758,0.76387512,118230.0,118220.0,0.73110217]
[1753017286962,0.76387512,118230.0,118220.0,0.67048]
[1753017287168,0.76387512,118230.0,118220.0,0.2446004]
[1753017287365,0.76387512,118230.0,118220.0,0.88496814]
[1753017287566,0.76387512,118230.0,118220.0,0.89835814]
[1753017287762,0.76387512,118230.0,118220.0,0.35904814]
[1753017287964,0.76387512,118230.0,118220.0,0.95392814]
[1753017288367,0.76687512,118230.0,118220.0,0.95392814]
[1753017289772,0.76687512,118230.0,118220.0,0.78480774]
[1753017289969,1.12767512,118230.0,118220.0,0.78480774]
[1753017290170,1.12767512,118230.0,118220.0,0.95392814]
[1753017291474,1.12767512,118230.0,118220.0,0.78480774]
[1753017293073,1.12767512,118230.0,118220.0,0.72875774]
[1753017293675,1.12767512,118230.0,118220.0,0.77820774]
[1753017294463,1.12767512,118230.0,118220.0,0.78440774]
[1753017296377,1.12767512,118230.0,118220.0,0.18992774]
[1753017296580,1.12767512,118230.0,118220.0,0.78400774]
[1753017300780,1.12767512,118230.0,118220.0,0.99536174]
[1753017304792,1.12767512,118230.0,118220.0,0.37404174]
[1753017304989,1.12767512,118230.0,118220.0,0.25676174]
[1753017305390,1.29684312,118230.0,118220.0,0.25676174]
[1753017306194,1.29684312,118230.0,118220.0,0.25476174]
[1753017306895,1.313599,118230.0,118220.0,0.25476174]
[1753017308195,1.313599,118230.0,118220.0,0.211354]
[1753017308696,1.144431,118230.0,118220.0,0.211354]
[1753017315900,1.144431,118230.0,118220.0,0.255374]
[1753017316499,1.144431,118230.0,118220.0,0.287664]
[1753017316896,1.144431,118230.0,118220.0,0.299934]
[1753017317299,1.144431,118230.0,118220.0,0.211354]
[1753017317499,1.737551,118230.0,118220.0,0.211354]
[1753017318103,1.737551,118230.0,118220.0,0.255374]
[1753017318497,1.737551,118230.0,118220.0,0.287664]
[1753017320199,1.144431,118230.0,118220.0,0.287664]
[1753017320406,1.737111,118230.0,118220.0,0.299934]
[1753017326414,1.737111,118230.0,118220.0,0.287664]
[1753017328014,1.737271,118230.0,118220.0,0.287664]
[1753017330512,1.737271,118230.0,118220.0,0.243644]
[1753017330717,0.3037304,118220.0,118210.0,0.12938437]
[1753017330909,1.09766643,118220.0,118210.0,0.04541437]
[1753017331110,1.11443001,118220.0,118210.0,0.04541437]
[1753017331816,0.2914847,118210.0,118200.0,0.11756437]
[1753017332012,1.3766247,118210.0,118200.0,0.11756437]
[1753017332414,1.39338948,118210.0,118200.0,0.12938437]
[1753017332616,1.39338948,118210.0,118200.0,0.11756437]
[1753017332814,1.39338948,118210.0,118200.0,0.04541437]
[1753017333313,1.39338948,118210.0,118200.0,0.08564437]
[1753017333521,1.39338948,118210.0,118200.0,0.11756437]
[1753017333818,1.39338948,118210.0,118200.0,0.32891837]
[1753017334313,1.3766247,118210.0,118200.0,0.32891837]
[1753017334520,1.39340605,118210.0,118200.0,0.32891837]
[1753017335016,1.39340605,118210.0,118200.0,0.211354]
[1753017335215,0.303759,118200.0,118190.0,0.07215]
[1753017335415,0.80134035,118200.0,118190.0,0.07215]
[1753017335627,0.80134035,118200.0,118190.0,0.10413]
[1753017335814,1.39354035,118200.0,118190.0,0.1383]
[1753017336017,0.80134035,118200.0,118190.0,0.1383]
[1753017336321,1.39346035,118200.0,118190.0,0.1383]
[1753017336816,1.39378419,118200.0,118190.0,0.1383]
[1753017337221,1.39378419,118200.0,118190.0,0.1393]
[1753017337425,1.39378419,118200.0,118190.0,0.1403]
[1753017338323,1.39378419,118200.0,118190.0,0.351654]
[1753017341327,1.39318419,118200.0,118190.0,0.351654]
[1753017344129,1.75398419,118200.0,118190.0,0.351654]
[1753017348234,1.736879,118200.0,118190.0,0.351654]
[1753017355247,1.75397237,118200.0,118190.0,0.351654]
[1753017361352,1.75397237,118200.0,118190.0,0.39704299]
[1753017363954,1.16245237,118200.0,118190.0,0.56620549]
[1753017364143,1.74223237,118200.0,118190.0,0.56620549]
[1753017364550,1.75533237,118200.0,118190.0,0.56620549]
[1753017364955,1.16329237,118200.0,118190.0,0.56620549]
[1753017365247,1.08116237,118200.0,118190.0,0.56620549]
[1753017365444,1.05474237,118200.0,118190.0,0.5830676]
[1753017365645,0.85869337,118200.0,118190.0,0.5830676]
[1753017365840,0.85869337,118200.0,118190.0,1.13011861]
[1753017366045,0.30624157,118200.0,118190.0,1.13011861]
[1753017366239,0.2891482,118200.0,118190.0,1.49091861]
[1753017366740,0.2891482,118200.0,118190.0,1.55154078]
[1753017367552,0.2891482,118200.0,118190.0,1.19074078]
[1753017369254,0.2891482,118200.0,118190.0,1.13011861]
[1753017382162,0.2891482,118200.0,118190.0,1.19074078]
[1753017382963,0.2891482,118200.0,118190.0,1.13011861]
[1753017385063,0.12,118200.0,118190.0,1.13011861]
[1753017385267,0.2891483,118200.0,118190.0,1.49091861]
[1753017385670,0.2891483,118200.0,118190.0,1.13011861]
[1753017386868,0.7974583,118200.0,118190.0,0.351654]
[1753017387170,0.7974583,118200.0,118190.0,0.39705513]
[1753017388165,0.7974583,118200.0,118190.0,0.98885513]
[1753017388464,0.7974583,118200.0,118190.0,0.39705513]
[1753017388665,0.7974583,118200.0,118190.0,0.98905513]
[1753017393375,0.7974583,118200.0,118190.0,0.943654]
[1753017398279,0.7974583,118200.0,118190.0,0.9891103]
[1753017400772,0.7974583,118200.0,118190.0,0.3971103]
[1753017400972,0.7974583,118200.0,118190.0,0.9884303]
[1753017401676,0.7974583,118200.0,118190.0,0.942974]
[1753017401875,0.7974583,118200.0,118190.0,0.39710864]
[1753017402082,0.7974583,118200.0,118190.0,0.98846864]
[1753017403880,0.7974583,118200.0,118190.0,0.35211864]
[1753017404080,1.3888983,118200.0,118190.0,0.36461109]
[1753017404384,1.3888983,118200.0,118190.0,0.34345109]
[1753017405482,1.3888983,118200.0,118190.0,0.34145109]
[1753017407376,1.40590458,118200.0,118190.0,0.295994]
[1753017407880,1.40590458,118200.0,118190.0,0.34145109]
[1753017408980,1.3888983,118200.0,118190.0,0.34145109]
[1753017410582,1.3888983,118200.0,118190.0,0.39844109]
[1753017410878,1.40590268,118200.0,118190.0,0.39844109]
[1753017411084,1.40590268,118200.0,118190.0,0.352984]
[1753017412377,1.40606268,118200.0,118190.0,0.352984]
[1753017412984,0.81446268,118200.0,118190.0,0.352984]
[1753017413284,1.40602268,118200.0,118190.0,0.352984]
[1753017414086,0.81446268,118200.0,118190.0,0.352984]
[1753017414385,1.40602268,118200.0,118190.0,0.39844109]
[1753017415281,1.40630268,118200.0,118190.0,0.39844109]
[1753017416390,0.81446268,118200.0,118190.0,0.39844109]
[1753017416582,1.40630268,118200.0,118190.0,0.39844109]
[1753017416887,1.3892983,118200.0,118190.0,0.39844109]
[1753017417079,1.40630977,118200.0,118190.0,0.39844109]
[1753017418385,0.81446977,118200.0,118190.0,0.39844109]
[1753017418584,1.40626977,118200.0,118190.0,0.39844109]
[1753017418879,1.34902977,118200.0,118190.0,0.39844109]
[1753017419080,1.3003283,118200.0,118190.0,0.39844109]
[1753017420587,1.3003283,118200.0,118190.0,0.56760289]
[1753017422392,1.3003283,118200.0,118190.0,0.39844109]
[1753017422593,1.31733969,118200.0,118190.0,0.39844109]
[1753017422797,1.3003283,118200.0,118190.0,0.39844109]
[1753017423294,1.3003283,118200.0,118190.0,0.56760279]
[1753017423997,1.3325683,118200.0,118190.0,0.56760279]
[1753017424495,1.39173782,118200.0,118190.0,0.56760279]
[1753017424897,1.31740782,118200.0,118190.0,0.56760279]
[1753017425298,1.34964782,118200.0,118190.0,0.56760279]
[1753017426403,1.39169782,118200.0,118190.0,0.56760279]
[1753017426700,1.34964782,118200.0,118190.0,0.56760279]
[1753017426897,1.31740782,118200.0,118190.0,0.56760279]
[1753017427606,0.7085283,118200.0,118190.0,0.56760279]
[1753017427806,0.9392483,118200.0,118190.0,0.56760279]
[1753017428203,0.95636937,118200.0,118190.0,0.56760279]
[1753017429005,1.25858937,118200.0,118190.0,0.56760279]
[1753017429205,0.6499483,118200.0,118190.0,1.15900279]
[1753017429407,0.2891483,118200.0,118190.0,1.15900279]
[1753017434825,0.2891483,118200.0,118190.0,1.1135457]
[1753017435122,0.3463483,118200.0,118190.0,1.1135457]
[1753017435928,0.7071483,118200.0,118190.0,1.1135457]
[1753017436125,0.3463483,118200.0,118190.0,1.15900557]
[1753017436325,0.3463483,118200.0,118190.0,1.15900572]
[1753017436526,0.3463483,118200.0,118190.0,1.1135457]
[1753017436726,0.3463483,118200.0,118190.0,1.15900505]
[1753017437129,0.3463483,118200.0,118190.0,1.1135457]
[1753017437326,0.3463483,118200.0,118190.0,1.15900307]
[1753017437624,0.3463483,118200.0,118190.0,1.1135457]
[1753017438020,0.3463483,118200.0,118190.0,1.15900266]
[1753017438215,0.3463483,118200.0,118190.0,1.1135457]
[1753017438429,0.7071483,118200.0,118190.0,1.1135457]
[1753017441330,0.3463483,118200.0,118190.0,1.1135457]
[1753017441827,0.7071483,118200.0,118190.0,1.1135457]
[1753017442332,0.7393883,118200.0,118190.0,0.944384]
[1753017444034,0.7393883,118200.0,118190.0,1.1135458]
[1753017445226,0.7924883,118200.0,118190.0,0.352984]
[1753017445431,0.7924883,118200.0,118190.0,0.943984]
[1753017446632,0.7924883,118200.0,118190.0,1.1131458]
[1753017446633,0.7393883,118200.0,118190.0,1.1131458]
[1753017446832,0.7071483,118200.0,118190.0,1.1131458]
[1753017448038,0.3463483,118200.0,118190.0,1.1131458]
[1753017448233,0.7071483,118200.0,118190.0,1.1131458]
[1753017448433,0.3463483,118200.0,118190.0,1.1131458]
[1753017448736,0.7071483,118200.0,118190.0,1.1131458]
[1753017449136,0.3463483,118200.0,118190.0,1.1131458]
[1753017450031,0.7071483,118200.0,118190.0,1.1131458]
[1753017450336,0.7071483,118200.0,118190.0,0.943984]
[1753017450539,0.7780183,118200.0,118190.0,0.943984]
[1753017450737,0.7906083,118200.0,118190.0,0.943944]
[1753017451039,0.7906083,118200.0,118190.0,1.00456617]
[1753017451637,0.7906083,118200.0,118190.0,0.352984]
[1753017451838,0.7906083,118200.0,118190.0,0.943944]
[1753017455542,0.7906083,118200.0,118190.0,1.1131058]
[1753017456040,0.7906083,118200.0,118190.0,1.17372797]
[1753017458037,0.4298083,118200.0,118190.0,1.17372797]
[1753017458340,0.7906083,118200.0,118190.0,1.1131058]
[1753017458541,0.7906083,118200.0,118190.0,0.943944]
[1753017458736,0.7906083,118200.0,118190.0,1.1131058]
[1753017459838,0.7906083,118200.0,118190.0,0.943944]
[1753017461142,0.7906083,118200.0,118190.0,1.00456617]
[1753017461942,0.7906083,118200.0,118190.0,0.943944]
[1753017464345,0.6499483,118200.0,118190.0,1.1131046]
[1753017464545,0.6499483,118200.0,118190.0,1.00456617]
[1753017464844,0.6499483,118200.0,118190.0,0.943944]
[1753017465041,0.6499483,118200.0,118190.0,0.5221446]
[1753017465346,0.6499483,118200.0,118190.0,1.1130246]
[1753017469146,0.2891483,118200.0,118190.0,1.1130246]
[1753017470240,0.2891483,118200.0,118190.0,1.17364677]
[1753017471047,0.2891483,118200.0,118190.0,1.1130246]
[1753017471648,0.3389183,118200.0,118190.0,1.1130246]
[1753017471844,0.3389183,118200.0,118190.0,1.17364677]
[1753017472748,0.3389183,118200.0,118190.0,1.1130246]
[1753017473445,0.6997183,118200.0,118190.0,1.1130246]
[1753017473846,0.7364183,118200.0,118190.0,0.41360617]
[1753017474154,0.7895183,118200.0,118190.0,0.352984]
[1753017474450,0.7895183,118200.0,118190.0,0.943744]
[1753017477257,0.7895183,118200.0,118190.0,0.352984]